bitfinex-derivatives/quotes_SOLF0:USTF0_20260217
["timestamp","ask_amount","ask_price","bid_price","bid_amount"]
[1771352824291,16.31429968,84.595,84.53,5.99682445]
[1771352824884,74.5,84.594,84.561,10.6489]
[1771352825386,74.5,84.594,84.53,5.99682445]
[1771352827291,74.5,84.593,84.53,5.99682445]
[1771352827895,16.27833083,84.619,84.53,5.99682445]
[1771352828083,16.27833083,84.617,84.55,5.99682445]
[1771352829194,16.27833083,84.615,84.55,5.99682445]
[1771352829791,16.27833083,84.615,84.567,10.6482]
[1771352830393,16.28866905,84.613,84.567,10.6482]
[1771352830880,16.28866905,84.613,84.54,5.99682445]
[1771352831080,5.99682445,84.64,84.56,5.99682445]
[1771352831285,74.5,84.639,84.56,5.99682445]
[1771352832087,74.5,84.638,84.56,5.99682445]
[1771352832292,74.5,84.637,84.56,5.99682445]
[1771352832692,5.99682445,84.64,84.597,10.6444]
[1771352832995,74.5,84.639,84.597,10.6444]
[1771352833188,8.13229097,84.638,84.589,10.6454]
[1771352834195,8.14262644,84.631,84.58,10.6465]
[1771352834395,8.14262644,84.629,84.58,10.6465]
[1771352834596,8.14262644,84.629,84.56,5.99682445]
[1771352835198,8.14262644,84.621,84.578,10.6468]
[1771352835402,8.05011292,84.619,84.56,5.99682445]
[1771352835898,8.05011292,84.619,84.584,10.646]
[1771352836499,8.05011292,84.619,84.573,10.6475]
[1771352836794,8.05011292,84.617,84.573,10.6475]
[1771352837193,8.05011292,84.615,84.563,10.6487]
[1771352837386,8.05011292,84.615,84.54,5.99682445]
[1771352837793,74.48,84.614,84.542,21.3028]
[1771352838198,8.05011292,84.615,84.542,21.3028]
[1771352838399,74.48,84.614,84.574,10.6473]
[1771352838801,82.54823125,84.614,84.574,10.6473]
[1771352839296,74.48,84.613,84.574,10.6473]
[1771352839495,8.06944205,84.612,84.574,10.6473]
[1771352839797,8.06944205,84.619,84.581,10.6464]
[1771352840004,74.48,84.611,84.581,10.6464]
[1771352840405,74.48,84.611,84.574,10.6474]
[1771352840799,8.06944205,84.61,84.542,21.3028]
[1771352841191,8.06944205,84.61,84.573,10.6474]
[1771352841596,74.48,84.609,84.542,21.3028]
[1771352841796,8.07005028,84.608,84.571,10.6477]
[1771352842198,35.353,84.607,84.54,5.99682445]
[1771352842408,8.07005028,84.624,84.56,5.99682445]
[1771352842706,74.48,84.623,84.561,21.2979]
[1771352842899,74.48,84.623,84.597,10.6444]
[1771352843295,5.99682445,84.64,84.56,5.99682445]
[1771352843498,179.79125443,84.745,84.58,5.99682445]
[1771352843499,5.99682445,84.66,84.58,5.99682445]
[1771352843794,74.48,84.659,84.58,5.99682445]
[1771352844803,74.48,84.659,84.61,10.6428]
[1771352845200,5.99682445,84.66,84.586,21.2918]
[1771352845398,48.8897,84.659,84.6,5.99682445]
[1771352845597,23.2584,84.658,84.62,5.99682445]
[1771352845808,28.7903,84.657,84.62,5.99682445]
[1771352846106,74.46,84.656,84.62,5.99682445]
[1771352846299,74.46,84.659,84.62,5.99682445]
[1771352846500,11.2489,84.659,84.62,5.99682445]
[1771352846697,74.46,84.661,84.62,5.99682445]
[1771352846904,55.9998,84.661,84.62,5.99682445]
[1771352847407,38.0942,84.661,84.62,5.99682445]
[1771352848204,4.01576164,84.703,84.645,10.6384]
[1771352848409,10.6311,84.704,84.62,5.99682445]
[1771352848410,4.01576164,84.699,84.62,5.99682445]
[1771352848602,4.01576164,84.697,84.62,5.99682445]
[1771352849102,4.01576164,84.688,84.634,10.6398]
[1771352849298,4.01576164,84.688,84.603,21.2874]
[1771352849810,4.01229191,84.687,84.635,10.6396]
[1771352850402,4.01229191,84.684,84.626,10.6407]
[1771352851010,4.01229191,84.684,84.634,10.6398]
[1771352851210,74.44,84.683,84.634,10.6398]
[1771352852002,3.99972783,84.679,84.626,10.6408]
[1771352852207,3.99972783,84.677,84.626,10.6408]
[1771352852402,3.99972783,84.675,84.6,5.99682445]
[1771352853510,78.44121362,84.674,84.629,10.6403]
[1771352853707,4.00121362,84.674,84.6,5.99682445]
[1771352854013,74.44,84.673,84.63,10.6402]
[1771352854207,4.00121362,84.674,84.63,10.6402]
[1771352854410,74.44,84.673,84.63,10.6402]
[1771352855207,4.00121362,84.674,84.63,10.6402]
[1771352855401,74.44,84.673,84.637,10.6393]
[1771352855801,4.00121362,84.674,84.6,5.99682445]
[1771352856008,4.008077,84.688,84.62,5.99682445]
[1771352856701,4.008077,84.688,84.651,10.6376]
[1771352858413,4.008077,84.688,84.641,10.6389]
[1771352858614,4.008077,84.688,84.62,5.99682445]
[1771352858806,74.42,84.687,84.62,5.99682445]
[1771352859012,74.42,84.686,84.64,10.6391]
[1771352859409,4.008077,84.688,84.62,5.99682445]
[1771352859609,4.008077,84.688,84.647,10.6381]
[1771352860408,4.008077,84.688,84.653,10.6373]
[1771352861315,4.008077,84.688,84.643,10.6387]
[1771352862014,3.99967431,84.708,84.64,5.99682445]
[1771352862220,74.42,84.707,84.64,5.99682445]
[1771352862716,3.99967431,84.708,84.662,10.6362]
[1771352863114,3.99967431,84.722,84.64,5.99682445]
[1771352863319,74.42,84.721,84.64,5.99682445]
[1771352863616,5.99682445,84.73,84.64,5.99682445]
[1771352863812,4.00464983,84.735,84.643,21.2774]
[1771352864012,4.00464983,84.758,84.69,5.99682445]
[1771352864920,4.00464983,84.758,84.713,10.6298]
[1771352865112,19.99631235,84.783,84.713,10.6298]
[1771352865420,19.99631235,84.783,84.73,5.99682445]
[1771352865617,24.03221207,84.783,84.714,74.4]
[1771352865808,4.03589972,84.782,84.71,5.99682445]
[1771352866211,4.03589972,84.782,84.724,10.6285]
[1771352866416,4.03589972,84.782,84.71,5.99682445]
[1771352866613,19.99631235,84.783,84.71,5.99682445]
[1771352867413,19.99631235,84.783,84.711,74.38]
[1771352867719,19.99631235,84.783,84.73,5.99682445]
[1771352868022,19.99631235,84.783,84.739,10.6266]
[1771352869820,19.99631235,84.783,84.73,16.62452445]
[1771352870324,19.99631235,84.783,84.73,5.99682445]
[1771352870526,19.99631235,84.783,84.738,10.6267]
[1771352871113,4.01146381,84.782,84.73,5.99682445]
[1771352871318,4.01146381,84.782,84.711,74.36]
[1771352871617,4.01386777,84.817,84.751,10.625]
[1771352871921,4.01386777,84.817,84.74,5.99682445]
[1771352872326,5.99682445,84.83,84.76,5.99682445]
[1771352872521,10.01069222,84.83,84.76,5.99682445]
[1771352872721,4.01386777,84.829,84.76,5.99682445]
[1771352873524,4.01386777,84.829,84.77,10.6227]
[1771352873822,4.01386777,84.829,84.759,74.36]
[1771352874029,4.04111781,84.809,84.72,5.99682445]
[1771352874224,4.04111781,84.809,84.686,21.2664]
[1771352874225,4.04111781,84.809,84.721,74.34]
[1771352874617,4.04111781,84.825,84.74,5.99682445]
[1771352874818,4.04111781,84.825,84.76,5.99682445]
[1771352875228,5.99682445,84.83,84.76,5.99682445]
[1771352875430,4.04111781,84.841,84.76,5.99682445]
[1771352876118,4.04727101,84.83,84.76,5.99682445]
[1771352876324,4.04727101,84.829,84.74,5.99682445]
[1771352876931,4.04727101,84.82,84.761,10.6238]
[1771352877429,4.04727101,84.82,84.74,5.99682445]
[1771352877626,4.04727101,84.82,84.741,74.32]
[1771352877929,4.04727101,84.82,84.75,5.9611522]
[1771352878131,4.04727101,84.82,84.759,10.624]
[1771352878923,4.02533044,84.87,84.75,5.9611522]
[1771352879126,4.02533044,84.849,84.75,5.9611522]
[1771352879629,4.10687649,84.839,84.775,10.622]
[1771352880330,4.10687649,84.839,84.75,5.9611522]
[1771352880829,4.10687649,84.839,84.782,10.6212]
[1771352881929,4.11337156,84.838,84.782,10.6212]
[1771352882126,4.11337156,84.867,84.79,5.9611522]
[1771352882319,4.11337156,84.867,84.808,10.618]
[1771352882523,4.11337156,84.867,84.791,74.32]
[1771352882732,4.11337156,84.867,84.81,5.9611522]
[1771352883024,21.2051,84.932,84.801,35.56]
[1771352883025,4.11337156,84.889,84.801,35.56]
[1771352883535,4.11666986,84.888,84.831,10.615]
[1771352883926,4.11666986,84.888,84.801,35.56]
[1771352884324,4.11666986,84.886,84.771,21.2452]
[1771352884534,4.11666986,84.869,84.79,5.9611522]
[1771352885034,14.72706986,84.869,84.808,10.618]
[1771352885234,4.11666986,84.868,84.808,10.618]
[1771352885930,5.9611522,84.85,84.772,74.3]
[1771352886131,4.13144786,84.869,84.732,165.3161]
[1771352886433,5.9611522,84.85,84.77,5.9611522]
[1771352886830,10.6112,84.863,84.77,5.9611522]
[1771352887034,10.6112,84.863,84.771,35.56]
[1771352887230,4.13144786,84.869,84.77,5.9611522]
[1771352887636,10.613,84.848,84.793,10.6198]
[1771352887928,4.09652603,84.849,84.775,74.28]
[1771352888126,14.70942603,84.849,84.775,74.28]
[1771352888328,14.70942603,84.849,84.776,74.28]
[1771352888329,4.09652603,84.849,84.776,74.28]
[1771352888828,4.09652603,84.849,84.793,10.6199]
[1771352889335,4.09652603,84.846,84.782,10.6212]
[1771352889729,4.09652603,84.846,84.776,74.28]
[1771352889937,10.6134,84.845,84.789,10.6203]
[1771352891035,10.6144,84.837,84.78,10.6215]
[1771352892839,4.07347617,84.845,84.788,10.6204]
[1771352893035,4.07347617,84.845,84.776,74.28]
[1771352893237,4.07347617,84.871,84.777,35.56]
[1771352893437,4.07347617,84.868,84.79,5.9611522]
[1771352893736,4.07347617,84.868,84.791,74.28]
[1771352893943,4.07347617,84.868,84.803,10.6186]
[1771352895539,5.9611522,84.88,84.803,10.6186]
[1771352895540,4.08001343,84.853,84.803,10.6186]
[1771352895739,4.08001343,84.853,84.739,11.82]
[1771352895740,296.0,84.947,84.83,5.9611522]
[1771352895938,4.08001343,84.949,84.87,5.9611522]
[1771352896139,4.08001343,84.949,84.851,35.56]
[1771352896140,4.08001343,84.949,84.89,5.9611522]
[1771352896342,5.9611522,84.94,84.86,5.9611522]
[1771352896641,4.08001343,84.939,84.861,74.26]
[1771352896937,5.9611522,84.94,84.861,74.26]
[1771352896938,4.08001343,84.93,84.861,74.26]
[1771352897247,4.08001343,84.93,84.808,11.82]
[1771352897248,4.08001343,84.919,84.84,5.9611522]
[1771352897450,14.70853897,84.914,84.846,10.6131]
[1771352897632,4.10363897,84.913,84.846,10.6131]
[1771352898143,10.6053,84.91,84.846,10.6131]
[1771352898445,4.10363897,84.913,84.84,5.9611522]
[1771352898942,4.10363897,84.899,84.827,74.26]
[1771352899443,4.10363897,84.899,84.82,5.9611522]
[1771352900244,4.10363897,84.899,84.812,74.24]
[1771352900745,10.6081,84.888,84.82,10.6165]
[1771352901042,4.11705089,84.887,84.82,10.6165]
[1771352901443,4.12223277,84.883,84.81,16.5788522]
[1771352901745,4.12223277,84.879,84.808,74.24]
[1771352902046,4.12223277,84.878,84.808,84.858]
[1771352902240,4.12223277,84.878,84.808,74.24]
[1771352902636,4.12223277,84.868,84.808,74.24]
[1771352903144,14.73303277,84.866,84.808,74.24]
[1771352903332,5.9611522,84.88,84.8,5.9611522]
[1771352903538,4.12223277,84.884,84.801,74.24]
[1771352904347,4.12223277,84.884,84.818,10.6167]
[1771352904740,10.6098,84.874,84.809,10.6178]
[1771352906136,5.9611522,84.9,84.809,10.6178]
[1771352906137,10.6101,84.871,84.809,10.6178]
[1771352906538,4.14165715,84.87,84.809,10.6178]
[1771352906743,10.6089,84.881,84.818,10.6167]
[1771352906944,4.14165715,84.886,84.82,5.9611522]
[1771352907342,4.14165715,84.886,84.821,10.6163]
[1771352908340,4.14728422,84.885,84.821,10.6163]
[1771352909649,10.6087,84.883,84.821,10.6163]
[1771352912751,10.6097,84.875,84.821,10.6163]
[1771352912950,74.24,84.921,84.816,74.24]
[1771352912951,4.1447928,84.874,84.816,74.24]
[1771352913153,4.1447928,84.874,84.805,74.24]
[1771352913353,4.1447928,84.858,84.8,5.9611522]
[1771352913753,4.1447928,84.858,84.793,74.24]
[1771352914450,5.9611522,84.88,84.8,5.9611522]
[1771352914451,4.14585502,84.877,84.8,5.9611522]
[1771352914849,10.6095,84.876,84.818,10.6167]
[1771352917451,4.14585502,84.877,84.825,10.6158]
[1771352917756,4.14585502,84.877,84.811,74.24]
[1771352918259,10.6103,84.87,84.816,10.6169]
[1771352918857,4.22023851,84.931,84.85,5.9611522]
[1771352919257,4.22023851,84.931,84.87,5.9611522]
[1771352919656,4.23001681,84.929,84.863,74.24]
[1771352920054,10.6051,84.911,84.864,10.611]
[1771352920261,4.23001681,84.91,84.825,13.89825365]
[1771352920455,4.23001681,84.91,84.846,74.24]
[1771352920657,4.23001681,84.904,84.855,10.6121]
[1771352921359,4.23001681,84.904,84.845,10.6133]
[1771352921958,4.23001681,84.904,84.807,13.89825365]
[1771352922264,4.23001681,84.904,84.822,74.24]
[1771352922464,10.6083,84.886,84.841,10.6137]
[1771352922860,4.23001681,84.904,84.83,5.9611522]
[1771352923063,4.23001681,84.904,84.831,74.24]
[1771352923666,14.85562507,84.897,84.85,10.6127]
[1771352924360,4.24872507,84.893,84.83,5.9611522]
[1771352924558,4.24872507,84.893,84.822,74.22]
[1771352925063,4.24872507,84.88,84.822,74.22]
[1771352926254,4.24872507,84.88,84.806,13.89825365]
[1771352926459,5.9611522,84.9,84.82,19.85940585]
[1771352926460,4.22733581,84.899,84.82,19.85940585]
[1771352926660,10.6085,84.884,84.84,10.6139]
[1771352927157,10.6085,84.884,84.82,19.85940585]
[1771352927158,10.6094,84.877,84.833,10.6148]
[1771352927565,10.6094,84.877,84.828,74.22]
[1771352927869,10.6085,84.884,84.828,74.22]
[1771352928556,10.6073,84.894,84.845,10.6133]
[1771352928754,4.22733581,84.899,84.84,5.9611522]
[1771352929661,4.22733581,84.899,84.855,10.6121]
[1771352929866,4.23644082,84.919,84.84,5.9611522]
[1771352930166,4.23644082,84.919,84.86,5.9611522]
[1771352931364,4.23644082,84.919,84.871,10.61]
[1771352931570,4.23644082,84.919,84.861,74.22]
[1771352931768,4.2280315,84.936,84.861,74.22]
[1771352932365,10.6034,84.926,84.877,10.6093]
[1771352932563,5.9611522,84.94,84.861,74.22]
[1771352932564,4.2280315,84.925,84.861,74.22]
[1771352933068,4.2280315,84.925,84.877,10.6093]
[1771352933264,4.2280315,84.925,84.861,74.22]
[1771352934362,4.2280315,84.925,84.862,74.22]
[1771352934856,4.22825998,84.924,84.876,10.6095]
[1771352936464,4.22825998,84.924,84.862,74.22]
[1771352936465,10.602,84.937,84.887,10.608]
[1771352937259,4.22261063,84.941,84.888,74.22]
[1771352938165,4.22261063,84.941,84.889,74.22]
[1771352938365,4.22261063,84.941,84.88,5.9611522]
[1771352938565,4.22261063,84.941,84.881,74.22]
[1771352938764,10.6028,84.93,84.882,10.6087]
[1771352939366,4.22261063,84.941,84.881,74.22]
[1771352939969,10.6017,84.939,84.881,74.22]
[1771352940271,4.22261063,84.941,84.88,5.94326132]
[1771352940471,10.6015,84.94,84.886,10.6081]
[1771352940667,10.6015,84.94,84.881,74.2]
[1771352940865,4.21184448,84.939,84.86,5.94326132]
[1771352941067,10.6034,84.925,84.871,10.61]
[1771352941868,10.6034,84.925,84.86,5.94326132]
[1771352941869,4.21923266,84.922,84.867,74.2]
[1771352942570,14.82463266,84.909,84.867,74.2]
[1771352943072,4.21923266,84.909,84.867,74.2]
[1771352943268,4.21923266,84.929,84.867,74.2]
[1771352943870,4.21923266,84.929,84.868,74.2]
[1771352944069,21.1985,84.959,84.88,5.94326132]
[1771352944070,4.21430115,84.959,84.88,5.94326132]
[1771352944368,4.21430115,84.959,84.881,74.2]
[1771352944568,4.21430115,84.959,84.877,74.2]
[1771352945164,4.21430115,84.959,84.86,5.94326132]
[1771352945369,4.21430115,84.959,84.861,74.2]
[1771352945977,4.24837706,84.927,84.876,10.6095]
[1771352946368,10.6033,84.926,84.882,10.6087]
[1771352946569,4.24837706,84.927,84.861,74.2]
[1771352946976,4.24837706,84.927,84.88,10.6089]
[1771352946977,14.85147706,84.927,84.88,10.6089]
[1771352947578,10.6039,84.921,84.88,10.6089]
[1771352948370,10.6047,84.915,84.869,10.6103]
[1771352948571,4.24621877,84.92,84.861,74.2]
[1771352949669,4.24621877,84.92,84.882,10.6087]
[1771352950081,4.24621877,84.92,84.861,74.2]
[1771352950580,10.6042,84.918,84.875,10.6096]
[1771352950787,4.24621877,84.92,84.861,74.2]
[1771352951371,10.6041,84.919,84.861,74.2]
[1771352951576,4.24621877,84.92,84.861,74.2]
[1771352951982,5.94326132,84.94,84.861,74.2]
[1771352951983,4.17993921,84.918,84.861,74.2]
[1771352952184,4.17993921,84.939,84.861,74.2]
[1771352953385,10.6042,84.919,84.863,10.6111]
[1771352953687,4.20191288,84.959,84.88,5.94326132]
[1771352953883,4.20191288,84.959,84.881,74.2]
[1771352954185,10.6008,84.946,84.888,10.6079]
[1771352954481,4.20191288,84.959,84.88,5.94326132]
[1771352954680,4.20191288,84.959,84.9,5.94326132]
[1771352954886,4.20228015,84.956,84.9,5.94326132]
[1771352955681,4.20228015,84.956,84.899,74.2]
[1771352955682,4.22596745,84.945,84.899,74.2]
[1771352957083,10.6015,84.94,84.899,74.2]
[1771352957389,4.22596745,84.945,84.88,5.94326132]
[1771352957590,4.22494634,84.969,84.881,74.2]
[1771352957786,10.6001,84.952,84.905,10.6058]
[1771352957992,4.22494634,84.969,84.9,5.94326132]
[1771352958287,4.22494634,84.953,84.9,80.12326132]
[1771352958694,4.22494634,84.953,84.9,74.18]
[1771352958989,4.22494634,84.953,84.905,10.6058]
[1771352959190,4.22494634,84.953,84.901,74.18]
[1771352960085,4.22494634,84.953,84.902,10.6061]
[1771352960480,4.22494634,84.953,84.89,5.94326132]
[1771352960481,10.6013,84.942,84.87,32.85850469]
[1771352960685,5.94326132,84.96,84.872,32.85850469]
[1771352960887,5.94326132,84.96,84.882,32.85850469]
[1771352961290,5.94326132,84.96,84.891,32.83451744]
[1771352961489,5.94326132,84.96,84.891,43.44211744]
[1771352961688,5.94326132,84.96,84.893,32.83451744]
[1771352961883,1.99674997,84.95,84.9,1.99674997]
[1771352962592,1.99674997,84.95,84.9,34.83126741]
[1771352962791,10.6008,84.946,84.9,34.83126741]
[1771352963692,10.6018,84.938,84.9,34.83126741]
[1771352963893,1.99674997,84.95,84.9,34.83126741]
[1771352964490,10.6015,84.94,84.9,34.83126741]
[1771352965889,10.6025,84.932,84.9,34.83126741]
[1771352966089,1.99674997,84.95,84.9,34.83126741]
[1771352966497,10.6015,84.94,84.9,34.83126741]
[1771352966794,1.99674997,84.95,84.9,34.83126741]
[1771352967192,1.99674997,84.94,84.9,32.83451744]
[1771352967390,1.99674997,84.95,84.9,34.83126741]
[1771352968491,10.603,84.929,84.9,34.83126741]
[1771352968692,10.603,84.929,84.9,32.83451744]
[1771352969294,1.99674997,84.93,84.884,32.80825074]
[1771352969996,1.99674997,84.92,84.884,32.80825074]
[1771352970194,21.1998,84.953,84.884,32.80825074]
[1771352970402,611.7823,85.008,84.9,1.99674997]
[1771352970403,1.99674997,84.95,84.9,1.99674997]
[1771352970701,10.6044,84.917,84.891,32.80750938]
[1771352971489,74.18,84.966,84.891,9.38e-06]
[1771352971490,1.99674997,84.93,84.891,9.38e-06]
[1771352972091,10.6054,84.909,84.88,1.99674997]
[1771352973494,10.6044,84.917,84.89,1.99674997]
[1771352973695,21.2016,84.946,84.89,4.997e-05]
[1771352973892,1.99674997,84.94,84.89,4.997e-05]
[1771352974699,1.99674997,84.94,84.884,16.44154783]
[1771352975000,1.99674997,84.94,84.89,1.99674997]
[1771352975792,21.1972,84.964,84.9,1.99674997]
[1771352976091,1.99674997,84.95,84.9,1.99674997]
[1771352976703,10.6035,84.925,84.9,1.99674997]
[1771352976899,10.6035,84.925,84.891,16.43536537]
[1771352977103,1.99674997,84.95,84.9,18.43211534]
[1771352977396,10.6029,84.93,84.9,18.43211534]
[1771352977592,1.99674997,84.96,84.91,1.99674997]
[1771352977794,10.81577731,84.98,84.911,16.44511276]
[1771352977990,10.81577731,84.98,84.883,74.18]
[1771352977991,1.99674997,84.97,84.921,16.44511276]
[1771352978902,10.5986,84.963,84.93,1.99674997]
[1771352979199,21.1872,85.004,84.893,13.89825365]
[1771352979200,1.99674997,84.96,84.912,74.18]
[1771352979398,1.99674997,84.96,84.91,18.44186273]
[1771352979805,10.6008,84.946,84.91,18.44186273]
[1771352980097,10.6008,84.946,84.867,21.06139027]
[1771352980098,1.99674997,84.94,84.894,16.45411386]
[1771352980704,12.59834997,84.94,84.896,16.45411386]
[1771352980900,10.6016,84.94,84.901,16.45411386]
[1771352981104,1.99674997,84.95,84.901,16.45411386]
[1771352981293,10.6026,84.932,84.901,16.45411386]
[1771352981497,1.99674997,84.95,84.901,16.45411386]
[1771352981699,1.99674997,84.94,84.89,1.99674997]
[1771352981902,1.99674997,84.94,84.89,18.43324048]
[1771352982704,10.6026,84.932,84.89,18.43324048]
[1771352984403,10.6026,84.932,84.892,27.02272858]
[1771352985099,1.99674997,84.93,84.881,10.57844303]
[1771352985304,11.00115604,84.982,84.876,16.41522858]
[1771352985305,1.99674997,84.92,84.876,26.99367161]
[1771352985807,1.99674997,84.9,84.861,10.6114]
[1771352986197,10.6067,84.899,84.86,16.4047264]
[1771352986399,1.99674997,84.89,84.845,16.4047264]
[1771352986705,1.99674997,84.88,84.845,16.4047264]
[1771352987406,10.6083,84.886,84.845,16.4047264]
[1771352987806,1.99674997,84.88,84.845,16.4047264]
[1771352988001,10.6083,84.886,84.845,16.4047264]
[1771352989303,10.6095,84.876,84.845,16.4047264]
[1771352989501,1.99674997,84.87,84.829,16.42530826]
[1771352989705,1.99674997,84.86,84.829,16.42530826]
[1771352989906,74.2,84.911,84.829,16.42530826]
[1771352990112,1.99674997,84.87,84.829,16.42530826]
[1771352990605,1.99674997,84.88,84.831,16.42530826]
[1771352991201,1.99674997,84.88,84.82,74.2]
[1771352991202,21.2061,84.928,84.841,16.42530826]
[1771352991411,1.99674997,84.9,84.851,16.42530826]
[1771352992510,1.99674997,84.89,84.851,16.42530826]
[1771352993303,1.99674997,84.9,84.851,16.42530826]
[1771352994699,10.607,84.897,84.853,10.6124]
[1771352995104,10.607,84.897,84.851,16.42530826]
[1771352995312,10.6085,84.884,84.851,16.42530826]
[1771352995712,1.99674997,84.89,84.851,16.42530826]
[1771352996605,10.6094,84.877,84.851,16.42530826]
[1771352996809,1.99674997,84.89,84.851,8.26e-06]
[1771352997212,10.6092,84.879,84.851,8.26e-06]
[1771352998313,10.6081,84.888,84.851,8.26e-06]
[1771352998910,10.6092,84.879,84.851,8.26e-06]
[1771352999912,11.00115604,84.949,84.851,8.26e-06]
[1771352999913,11.00115604,84.958,84.851,8.26e-06]
[1771353000214,1.99674997,84.93,84.88,1.99674997]
[1771353000521,1.99674997,84.92,84.871,8.37464025]
[1771353000713,74.22,84.951,84.871,8.37464025]
[1771353000912,10.6036,84.924,84.884,10.6085]
[1771353001107,1.99674997,84.94,84.9,10.37139022]
[1771353001312,1.99674997,84.92,84.869,74.22]
[1771353001507,10.6038,84.922,84.87,10.35222541]
[1771353001716,10.6038,84.922,84.881,8.35547544]
[1771353001916,1.99807899,84.92,84.881,8.35547544]
[1771353002121,1.99807899,84.94,84.891,8.35547544]
[1771353002522,10.6029,84.929,84.891,8.35547544]
[1771353003826,10.6039,84.921,84.88,1.99807899]
[1771353004126,1.99807899,84.94,84.88,1.99807899]
[1771353004324,1.99807899,84.94,84.879,74.22]
[1771353004325,1.99807899,84.94,84.89,1.99807899]
[1771353004721,1.99807899,84.95,84.9,1.99807899]
[1771353005426,1.99807899,84.96,84.901,10.6063]
[1771353005614,1.99807899,84.95,84.9,1.99807899]
[1771353006222,1.99807899,84.95,84.901,4.26914209]
[1771353006522,1.99807899,84.95,84.91,4.26914209]
[1771353006926,1.99807899,84.95,84.9,1.99807899]
[1771353007731,10.6017,84.939,84.897,74.2]
[1771353008024,1.99807899,84.94,84.898,4.28922475]
[1771353008228,1.99807899,84.95,84.898,4.28922475]
[1771353008422,1.99807899,84.96,84.901,4.28922475]
[1771353008619,74.2,85.003,84.921,4.28922475]
[1771353008824,10.5966,84.979,84.933,4.28922475]
[1771353009021,1.99807899,84.97,84.933,4.28922475]
[1771353009230,1.99807899,84.97,84.921,74.2]
[1771353009527,1.99807899,84.97,84.921,78.48922475]
[1771353009827,1.99807899,84.98,84.921,74.2]
[1771353010020,12.59587899,84.97,84.921,74.2]
[1771353010426,12.59587899,84.97,84.924,4.28011177]
[1771353010727,10.5987,84.963,84.924,4.28011177]
[1771353011518,1.99807899,84.97,84.924,4.28011177]
[1771353011730,1.99807899,84.96,84.924,4.28011177]
[1771353011920,21.1871,85.004,84.924,4.28011177]
[1771353011921,1.99807899,84.97,84.924,4.28011177]
[1771353012323,1.99807899,84.95,84.909,4.2436026]
[1771353012525,1.79086531,84.95,84.909,4.2436026]
[1771353012926,10.6006,84.947,84.909,4.2436026]
[1771353013124,164.8033,84.997,84.892,4.2436026]
[1771353013423,1.99807899,84.95,84.901,4.2436026]
[1771353014223,10.6017,84.939,84.901,4.2436026]
[1771353015427,1.99807899,84.92,84.872,4.36377952]
[1771353015632,1.99807899,84.9,84.868,74.18]
[1771353015833,1.99807899,84.89,84.84,1.99807899]
[1771353016131,1.99807899,84.92,84.871,4.36377952]
[1771353016631,1.99807899,84.91,84.871,4.36377952]
[1771353016931,1.99807899,84.92,84.871,4.36377952]
[1771353017132,10.6041,84.919,84.873,4.36377952]
[1771353018525,10.6031,84.927,84.875,4.30147979]
[1771353019031,5.94733289,84.94,84.875,4.30147979]
[1771353019228,5.94733289,84.92,84.87,74.18]
[1771353019424,5.94733289,84.92,84.856,4.30147979]
[1771353019625,10.6081,84.888,84.856,4.30147979]
[1771353019830,5.94733289,84.92,84.856,4.30147979]
[1771353020122,10.6079,84.889,84.856,4.30147979]
[1771353020729,5.94733289,84.9,84.843,4.33943384]
[1771353021330,5.94733289,84.9,84.82,10.57844303]
[1771353021331,10.6099,84.873,84.825,4.33943384]
[1771353021725,10.6108,84.866,84.825,4.33943384]
[1771353022129,5.94733289,84.9,84.825,4.33943384]
[1771353022927,10.6082,84.887,84.841,10.6137]
[1771353023127,10.6082,84.887,84.842,4.35442197]
[1771353023534,5.94733289,84.9,84.842,4.35442197]
[1771353023827,5.94733289,84.9,84.826,4.27452603]
[1771353024430,5.94733289,84.88,84.826,4.27452603]
[1771353025028,10.6097,84.875,84.826,14.89012603]
[1771353025327,21.2061,84.928,84.815,74.2]
[1771353025328,5.94733289,84.89,84.827,4.29493804]
[1771353026230,10.6133,84.846,84.796,10.6195]
[1771353026429,5.94733289,84.86,84.79,4.29493804]
[1771353026929,5.94733289,84.88,84.79,4.29493804]
[1771353027330,10.6133,84.846,84.794,4.29493804]
[1771353027631,5.94733289,84.86,84.794,4.29493804]
[1771353028525,5.94733289,84.84,84.771,4.25809204]
[1771353028928,10.617,84.816,84.771,4.25809204]